Workbook

Sheet Sheet1
A1: Freq | B1: Mic1 | C1: Mic2 | D1: Mic3 | E1: Mic4 | G1: Freq | H1: Mic1 | I1: Mic2 | J1: Mic3 | K1: Mic4 | M1: Freq | N1: Mic1 | O1: Mic2 | P1: Mic3 | Q1: Mic4 | S1: Freq | T1: Mic1 | U1: Mic2 | V1: Mic3 | W1: Mic4
A2: 50 | B2: 74.0195 | C2: 73.7708 | D2: 74.3637 | E2: 73.6918 | G2: 50 | H2: 74.0195 | I2: 73.7708 | J2: 74.3637 | K2: 73.6918 | M2: 50 | N2: =10^(B2/20) -> 5023.136732 | O2: =10^(C2/20) -> 4881.350581 | P2: 5226.187658 | Q2: 4837.154956 | S2: 50 | T2: =20*LOG(N2) -> 74.0195 | U2: =20*LOG(O2) -> 73.7708 | V2: 74.3637 | W2: 73.6918
A3: 53 | B3: 75.5865 | C3: 75.333 | D3: 75.8923 | E3: 75.2601 | G3: 53 | H3: 75.5475 | I3: 75.2926 | J3: 75.8683 | K3: 75.2193 | M3: 53 | N3: =10^(B3/20) -> 6016.237883 | O3: =10^(C3/20) -> 5843.189889 | P3: =10^(D3/20) -> 6231.821425 | Q3: =10^(E3/20) -> 5794.353674 | S3: 53 | T3: =20*(LOG(SUM(N2:N4)/3)) -> 75.54747652 | U3: =20*(LOG(SUM(O2:O4)/3)) -> 75.29258202 | V3: 75.86834396 | W3: 75.2192865
A4: 56 | B4: 76.8127 | C4: 76.5521 | D4: 77.1297 | E4: 76.4826 | G4: 56 | H4: 76.3188 | I4: 76.0642 | J4: 76.6366 | K4: 76.0026 | M4: 56 | N4: 6928.432656 | O4: 6723.648481 | P4: 7185.963385 | Q4: 6670.063984 | S4: 56 | T4: =20*LOG(SUM(N2:N6)/5) -> 76.31876899 | U4: =20*LOG(SUM(O2:O6)/5) -> 76.06417402 | V4: 76.63663753 | W4: 76.00260474
A5: 60 | B5: 76.8078 | C5: 76.5498 | D5: 77.1304 | E5: 76.4985 | G5: 60 | H5: 77.52 | I5: 77.2707 | J5: 77.8374 | K5: 77.2176 | M5: 60 | N5: 6924.525198 | O5: 6721.868313 | P5: 7186.542529 | Q5: 6682.285086 | S5: 60 | T5: =20*LOG(SUM(N3:N7)/5) -> 77.52002655 | U5: =20*LOG(SUM(O3:O7)/5) -> 77.27069342 | V5: =20*LOG(SUM(P3:P7)/5) -> 77.83742932 | W5: =20*LOG(SUM(Q3:Q7)/5) -> 77.21758407
A6: 63 | B6: 77.8806 | C6: 77.6297 | D6: 78.1874 | E6: 77.5859 | G6: 63 | H6: 78.5648 | I6: 78.3193 | J6: 78.8831 | K6: 78.2712 | M6: 63 | N6: 7834.83762 | O6: 7611.758485 | P6: 8116.522558 | Q6: 7573.471579 | S6: 63 | T6: 78.56478551 | U6: 78.31934677 | V6: 78.8830932 | W6: 78.27124045
A7: 67 | B7: 79.8927 | C7: 79.6611 | D7: 80.2222 | E7: 79.6228 | G7: 67 | H7: 79.7804 | I7: 79.5373 | J7: 80.099 | K7: 79.4942 | M7: 67 | N7: 9877.226206 | O7: 9617.340668 | P7: 10259.11741 | Q7: 9575.026839 | S7: 67 | T7: 79.78038459 | U7: 79.53727253 | V7: 80.09903965 | W7: 79.49424287
A8: 71 | B8: 80.6843 | C8: 80.4479 | D8: 80.9988 | E8: 80.4034 | G8: 71 | H8: 80.9084 | I8: 80.668 | J8: 81.2329 | K8: 80.6317 | M8: 71 | N8: 10819.69454 | O8: 10529.19091 | P8: 11218.63452 | Q8: 10475.38516 | S8: 71 | T8: 80.90845503 | U8: 80.66799008 | V8: 81.23287342 | W8: 80.63169701
A9: 75 | B9: 82.474 | C9: 82.2292 | D9: 82.7929 | E9: 82.1886 | G9: 75 | H9: 81.6618 | I9: 81.4234 | J9: 81.9937 | K9: 81.3937 | M9: 75 | N9: 13295.3569 | O9: 12925.87644 | P9: 13792.56375 | Q9: 12865.59867 | S9: 75 | T9: 81.66182473 | U9: 81.42338178 | V9: 81.99374832 | W9: 81.39367341
A10: 80 | B10: 82.7253 | C10: 82.4854 | D10: 83.0693 | E10: 82.4655 | G10: 80 | H10: 82.124 | I10: 81.8788 | J10: 82.449 | K10: 81.8434 | M10: 80 | N10: 13685.63648 | O10: 13312.81816 | P10: 14238.52493 | Q10: 13282.35245 | S10: 80 | T10: 82.12401607 | U10: 81.87880912 | V10: 82.44907302 | W10: 81.84341973
A11: 85 | B11: 82.188 | C11: 81.9507 | D11: 82.537 | E11: 81.9408 | G11: 85 | H11: 82.9857 | I11: 82.7309 | J11: 83.2989 | K11: 82.681 | M11: 85 | N11: 12864.70998 | O11: 12518.00152 | P11: 13392.14059 | Q11: 12503.74189 | S11: 85 | T11: 82.9857498 | U11: 82.73092336 | V11: 83.29888625 | W11: 82.68095931
A12: 90 | B12: 82.4023 | C12: 82.1362 | D12: 82.6991 | E12: 82.0724 | G12: 90 | H12: 83.7851 | I12: 83.527 | J12: 84.0977 | K12: 83.4714 | M12: 90 | N12: 13186.05856 | O12: 12788.21709 | P12: 13644.41751 | Q12: 12694.62862 | S12: 90 | T12: 83.78509539 | U12: 83.52696503 | V12: 84.09769868 | W12: 83.4714044
A13: 95 | B13: 84.8505 | C13: 84.5719 | D13: 85.1208 | E13: 84.4717 | G13: 95 | H13: 84.5608 | I13: 84.3057 | J13: 84.8717 | K13: 84.244 | M13: 95 | N13: 17479.33879 | O13: 16927.58487 | P13: 18031.83813 | Q13: 16733.43111 | S13: 95 | T13: 84.56077427 | U13: 84.30569011 | V13: 84.87174964 | W13: 84.24399968
A14: 100 | B14: 86.0606 | C14: 85.7997 | D14: 86.3755 | E14: 85.7344 | G14: 100 | H14: 85.6784 | I14: 85.44 | J14: 85.9698 | K14: 85.3521 | M14: 100 | N14: 20092.31601 | O14: 19497.77256 | P14: 20834.11226 | Q14: 19351.73909 | S14: 100 | T14: 85.67840233 | U14: 85.44006423 | V14: 85.96974964 | W14: 85.35209023
A15: 106 | B15: 86.4059 | C15: 86.172 | D15: 86.7325 | E15: 86.1151 | G15: 106 | H15: 87.0829 | I15: 86.8754 | J15: 87.3362 | K15: 86.7588 | M15: 106 | N15: 20907.15794 | O15: 20351.66756 | P15: 21708.25928 | Q15: 20218.78248 | S15: 106 | T15: 87.08292785 | U15: 86.87536607 | V15: 87.33621098 | W15: 86.75876682
A16: 112 | B16: 87.7734 | C16: 87.5932 | D16: 88.0272 | E16: 87.4559 | G16: 112 | H16: 88.3458 | I16: 88.1527 | J16: 88.5652 | K16: 88.0249 | M16: 112 | N16: 24472.0302 | O16: 23969.55658 | P16: 25197.64773 | Q16: 23593.6428 | S16: 112 | T16: 88.34583861 | U16: 88.15269945 | V16: 88.5651942 | W16: 88.02486486
A17: 118 | B17: 89.5595 | C17: 89.4243 | D17: 89.7093 | E17: 89.2397 | G17: 118 | H17: 89.5714 | I17: 89.3755 | J17: 89.7621 | K17: 89.2429 | M17: 118 | N17: 30059.03264 | O17: 29594.7721 | P17: 30581.93775 | Q17: 28972.43519 | S17: 118 | T17: 89.57141486 | U17: 89.37550348 | V17: 89.76208415 | W17: 89.24284568
A18: 125 | B18: 90.9223 | C18: 90.7332 | D18: 91.0574 | E18: 90.5829 | G18: 125 | H18: 91.0335 | I18: 90.8068 | J18: 91.2 | K18: 90.6561 | M18: 125 | N18: 35165.35451 | O18: 34408.0452 | P18: 35716.59095 | Q18: 33817.77264 | S18: 125 | T18: 91.03348259 | U18: 90.80683219 | V18: 91.20002384 | W18: 90.65611034
A19: 132 | B19: 92.019 | C19: 91.7813 | D19: 92.1785 | E19: 91.6667 | G19: 132 | H19: 92.4449 | I19: 92.1807 | J19: 92.596 | K19: 92.0112 | M19: 132 | N19: 39897.89656 | O19: 38820.8464 | P19: 40637.31449 | Q19: 38312.01552 | S19: 132 | T19: 92.44490725 | U19: 92.18074471 | V19: 92.59598385 | W19: 92.01123398
A20: 140 | B20: 93.7144 | C20: 93.3885 | D20: 93.8756 | E20: 93.2219 | G20: 140 | H20: 93.5785 | I20: 93.282 | J20: 93.7198 | K20: 93.0948 | M20: 140 | N20: 48497.57239 | O20: 46711.62761 | P20: 49406.03481 | Q20: 45824.21142 | S20: 140 | T20: 93.57849852 | U20: 93.28197768 | V20: 93.71975407 | W20: 93.09483532
A21: 150 | B21: 94.9475 | C21: 94.6001 | D21: 95.0945 | E21: 94.3841 | G21: 150 | H21: 94.7204 | I21: 94.4117 | J21: 94.8433 | K21: 94.1993 | M21: 150 | N21: 55895.26249 | O21: 53703.79792 | P21: 56849.2841 | Q21: 52384.765 | S21: 150 | T21: 94.72038116 | U21: 94.41176479 | V21: 94.84332848 | W21: 94.19927015
A22: 160 | B22: 95.4563 | C22: 95.1277 | D22: 95.5671 | E22: 94.8788 | G22: 160 | H22: 95.6033 | I22: 95.2937 | J22: 95.7231 | K22: 95.0643 | M22: 160 | N22: 59267.28051 | O22: 57066.99443 | P22: 60028.15565 | Q22: 55454.90939 | S22: 160 | T22: 95.60331849 | U22: 95.29370298 | V22: 95.72305515 | W22: 95.064327
A23: 170 | B23: 96.7398 | C23: 96.4507 | D23: 96.8051 | E23: 96.1822 | G23: 170 | H23: 96.0173 | I23: 95.7003 | J23: 96.1453 | K23: 95.4574 | M23: 170 | N23: 68705.26199 | O23: 66456.12281 | P23: 69223.73051 | Q23: 64433.24442 | S23: 170 | T23: 96.01732858 | U23: 95.70029903 | V23: 96.1452559 | W23: 95.45743516
A24: 180 | B24: 96.7807 | C24: 96.5088 | D24: 96.9108 | E24: 96.2801 | G24: 180 | H24: 96.3035 | I24: 95.9637 | J24: 96.4321 | K24: 95.7009 | M24: 180 | N24: 69029.54328 | O24: 66902.13849 | P24: 70071.27179 | Q24: 65163.58963 | S24: 180 | T24: 96.30348511 | U24: 95.96369752 | V24: 96.43205159 | W24: 95.7008897
A25: 190 | B25: 96.0159 | C25: 95.6566 | D25: 96.2082 | E25: 95.408 | G25: 190 | H25: 96.6781 | I25: 96.3062 | J25: 96.8295 | K25: 96.0456 | M25: 190 | N25: 63211.34045 | O25: 60649.88755 | P25: 64626.40531 | Q25: 58938.62502 | S25: 190 | T25: 96.6780561 | U25: 96.30622651 | V25: 96.8294834 | W25: 96.0456451
A26: 200 | B26: 96.4542 | C26: 95.9989 | D26: 96.6013 | E26: 95.6794 | G26: 200 | H26: 96.7297 | I26: 96.3453 | J26: 96.932 | K26: 96.1257 | M26: 200 | N26: 66482.90686 | O26: 63087.74437 | P26: 67618.4171 | Q26: 60809.29943 | S26: 200 | T26: 96.72969567 | U26: 96.34530543 | V26: 96.9320076 | W26: 96.12565855
A27: 212 | B27: 97.3451 | C27: 96.8651 | D27: 97.5649 | E27: 96.6241 | G27: 212 | H27: 96.6102 | I27: 96.2476 | J27: 96.8576 | K27: 96.0856 | M27: 212 | N27: 73663.94952 | O27: 69703.56649 | P27: 75551.83205 | Q27: 67796.14502 | S27: 212 | T27: 96.61018122 | U27: 96.2476221 | V27: 96.85762443 | W27: 96.08561244
A28: 224 | B28: 96.9932 | C28: 96.6412 | D28: 97.3074 | E28: 96.5691 | G28: 224 | H28: 96.4149 | I28: 96.1084 | J28: 96.6941 | K28: 96.0092 | M28: 224 | N28: 70739.17654 | O28: 67929.74745 | P28: 73344.91338 | Q28: 67368.20874 | S28: 224 | T28: 96.41489665 | U28: 96.10839047 | V28: 96.69404748 | W28: 96.00914742
A29: 236 | B29: 96.1697 | C29: 96.0186 | D29: 96.5314 | E29: 96.0816 | G29: 236 | H29: 95.9058 | I29: 95.6861 | J29: 96.1977 | K29: 95.6313 | M29: 236 | N29: 64340.58422 | O29: 63230.99268 | P29: 67076.43924 | Q29: 63691.28338 | S29: 236 | T29: 95.90582689 | U29: 95.68608239 | V29: 96.19774467 | W29: 95.63130505
A30: 250 | B30: 94.9151 | C30: 94.884 | D30: 95.288 | E30: 94.9864 | G30: 250 | H30: 95.2062 | I30: 95.0891 | J30: 95.4641 | K30: 95.0191 | M30: 250 | N30: 55687.15105 | O30: 55488.11864 | P30: 58129.95677 | Q30: 56146.15238 | S30: 250 | T30: 95.20619556 | U30: 95.08905735 | V30: 95.4640997 | W30: 95.01905256
A31: 265 | B31: 93.5605 | C31: 93.6118 | D31: 93.7399 | E31: 93.5093 | G31: 265 | H31: 94.6262 | I31: 94.5669 | J31: 94.8859 | K31: 94.4854 | M31: 265 | N31: 47645.84132 | O31: 47928.07652 | P31: 48640.16058 | Q31: 47365.81343 | S31: 265 | T31: 94.626242 | U31: 94.5668963 | V31: 94.88586745 | W31: 94.48544162
A32: 280 | B32: 93.8943 | C32: 93.8906 | D32: 93.8765 | E32: 93.4819 | G32: 280 | H32: 94.1294 | I32: 94.0753 | J32: 94.4069 | K32: 93.9902 | M32: 280 | N32: 49512.51648 | O32: 49491.42972 | P32: 49411.15434 | Q32: 47216.63143 | S32: 280 | T32: 94.12939148 | U32: 94.07534046 | V32: 94.40688236 | W32: 93.99021113
A33: 300 | B33: 94.3438 | C33: 94.2118 | D33: 94.6868 | E33: 94.0792 | G33: 300 | H33: 93.6903 | I33: 93.6115 | J33: 93.9853 | K33: 93.5121 | M33: 300 | N33: 52142.27791 | O33: 51355.85926 | P33: 54242.53776 | Q33: 50577.8076 | S33: 300 | T33: 93.69026016 | U33: 93.61151033 | V33: 93.98534359 | W33: 93.51207578
A34: 315 | B34: 93.8687 | C34: 93.7172 | D34: 94.3514 | E34: 93.8048 | G34: 315 | H34: 93.4285 | I34: 93.3207 | J34: 93.7646 | K34: 93.2067 | M34: 315 | N34: 49366.80264 | O34: 48513.20868 | P34: 52187.92145 | Q34: 49004.95559 | S34: 315 | T34: 93.42845611 | U34: 93.32073305 | V34: 93.76458035 | W34: 93.20673049
A35: 335 | B35: 92.6991 | C35: 92.5358 | D35: 93.1963 | E35: 92.6166 | G35: 335 | H35: 93.0044 | I35: 92.9333 | J35: 93.388 | K35: 92.83 | M35: 335 | N35: 43147.43667 | O35: 42343.8166 | P35: 45689.35215 | Q35: 42739.55539 | S35: 335 | T35: 93.0043766 | U35: 92.93326606 | V35: 93.38798038 | W35: 92.82996955
A36: 355 | B36: 92.1418 | C36: 92.0496 | D36: 92.5395 | E36: 91.8618 | G36: 355 | H36: 92.445 | I36: 92.463 | J36: 92.6746 | K36: 92.2106 | M36: 355 | N36: 40465.97417 | O36: 40038.70294 | P36: 42361.85799 | Q36: 39182.30672 | S36: 355 | T36: 92.44496971 | U36: 92.46297515 | V36: 92.6745626 | W36: 92.21057553
A37: 375 | B37: 91.6712 | C37: 91.9057 | D37: 91.8352 | E37: 91.4824 | G37: 375 | H37: 91.9494 | I37: 92.0095 | J37: 91.8345 | K37: 91.3371 | M37: 375 | N37: 38331.86942 | O37: 39380.84222 | P37: 39062.49688 | Q37: 37507.66254 | S37: 375 | T37: 91.94944332 | U37: 92.00946803 | V37: 91.83446413 | W37: 91.33704613
A38: 400 | B38: 91.6423 | C38: 91.9703 | D38: 91.0842 | E38: 91.0055 | G38: 400 | H38: 91.4628 | I38: 91.4444 | J38: 90.9846 | K38: 90.4243 | M38: 400 | N38: 38204.5422 | O38: 39674.82319 | P38: 35826.9634 | Q38: 35503.81321 | S38: 400 | T38: 91.4628468 | U38: 91.44438092 | V38: 90.98460273 | W38: 90.42432316
A39: 425 | B39: 91.538 | C39: 91.5573 | D39: 90.1989 | E39: 89.3943 | G39: 425 | H39: 90.9409 | I39: 90.5859 | J39: 90.1765 | K39: 89.533 | M39: 425 | N39: 37748.52617 | O39: 37832.49645 | P39: 32355.26789 | Q39: 29492.7317 | S39: 425 | T39: 90.94089203 | U39: 90.58584639 | V39: 90.1765147 | W39: 89.53293894
A40: 450 | B40: 90.2017 | C40: 89.4821 | D40: 88.7822 | E40: 87.7276 | G40: 450 | H40: 90.3839 | I40: 89.5489 | J40: 89.5085 | K40: 88.63 | M40: 450 | N40: 32365.69968 | O40: 29792.36637 | P40: 27485.9024 | Q40: 24343.33076 | S40: 450 | T40: 90.38388629 | U40: 89.54892956 | V40: 89.5085548 | W40: 88.62993671
A41: 475 | B41: 89.412 | C41: 87.0304 | D41: 88.5072 | E41: 87.2303 | G41: 475 | H41: 89.6281 | I41: 88.3312 | J41: 89.0695 | K41: 87.9108 | M41: 475 | N41: 29552.89291 | O41: 22465.70232 | P41: 26629.31531 | Q41: 22988.73108 | S41: 475 | T41: 89.62812631 | U41: 88.33118437 | V41: 89.06951987 | W41: 87.9108256
A42: 500 | B42: 88.7509 | C42: 86.17 | D42: 88.6654 | E42: 87.1254 | G42: 500 | H42: 88.445 | I42: 86.7066 | J42: 88.469 | K42: 87.2032 | M42: 500 | N42: 27387.03394 | O42: 20346.98196 | P42: 27118.77076 | Q42: 22712.76461 | S42: 500 | T42: 88.44503418 | U42: 86.70657318 | V42: 88.46896462 | W42: 87.20317591
A43: 530 | B43: 87.7596 | C43: 86.0371 | D43: 89.0854 | E43: 87.8799 | G43: 530 | H43: 86.9769 | I43: 84.9895 | J43: 87.391 | K43: 86.0112 | M43: 530 | N43: 24433.18031 | O43: 20038.02896 | P43: 28462.30053 | Q43: 24773.93535 | S43: 530 | T43: 86.97694188 | U43: 84.98954794 | V43: 87.39095896 | W43: 86.01117552
A44: 560 | B44: 85.3238 | C44: 83.8484 | D44: 87.1836 | E44: 85.9186 | G44: 560 | H44: 85.212 | I44: 83.3753 | J44: 85.9335 | K44: 84.5119 | M44: 560 | N44: 18458.22774 | O44: 15574.71112 | P44: 22865.46301 | Q44: 19766.51016 | S44: 560 | T44: 85.21196131 | U44: 83.37534885 | V44: 85.93353939 | W44: 84.51188269
A45: 600 | B45: 81.4435 | C45: 80.3253 | D45: 81.5935 | E45: 79.6902 | G45: 600 | H45: 83.3918 | I45: 82.0213 | J45: 84.2796 | K45: 83.064 | M45: 600 | N45: 11807.96345 | O45: 10381.61693 | P45: 12013.65068 | Q45: 9649.615306 | S45: 600 | T45: 83.39175984 | U45: 82.02128406 | V45: 84.27957511 | W45: 83.06398771
A46: 630 | B46: 79.108 | C46: 77.3899 | D46: 78.6317 | E46: 77.0889 | G46: 630 | H46: 81.7603 | I46: 80.771 | J46: 82.3178 | K46: 81.3926 | M46: 630 | N46: 9024.018978 | O46: 7404.487427 | P46: 8542.500246 | Q46: 7152.288102 | S46: 630 | T46: 81.76033751 | U46: 80.77099083 | V46: 82.31780172 | W46: 81.39262195
A47: 670 | B47: 80.1395 | C47: 79.7371 | D47: 79.959 | E47: 79.8305 | G47: 670 | H47: 80.785 | I47: 80.4195 | J47: 80.7655 | K47: 80.8249 | M47: 670 | N47: 10161.90195 | O47: 9701.859925 | P47: 9952.908237 | Q47: 9806.747649 | S47: 670 | T47: 80.78497354 | U47: 80.41950404 | V47: 80.76550755 | W47: 80.82486444
A48: 710 | B48: 81.4237 | C48: 81.273 | D48: 81.5237 | E48: 81.8121 | G48: 710 | H48: 80.8425 | I48: 81.2331 | J48: 81.1455 | K48: 82.4886 | M48: 710 | N48: 11781.07715 | O48: 11578.43868 | P48: 11917.49559 | Q48: 12319.83808 | S48: 710 | T48: 80.84252665 | U48: 81.23313603 | V48: 81.1455417 | W48: 82.48856669
A49: 750 | B49: 81.5504 | C49: 82.5471 | D49: 81.713 | E49: 84.1109 | G49: 750 | H49: 80.6133 | I49: 80.8514 | J49: 81.3384 | K49: 82.2252 | M49: 750 | N49: 11954.18575 | O49: 13407.72211 | P49: 12180.07605 | Q49: 16052.5858 | S49: 750 | T49: 80.61331427 | U49: 80.85140978 | V49: 81.33839983 | W49: 82.22519444
A50: 800 | B50: 81.7071 | C50: 83.826 | D50: 83.2009 | E50: 86.55 | G50: 800 | H50: 80.851 | I50: 80.7841 | J50: 81.7958 | K50: 82.2489 | M50: 800 | N50: 12171.80539 | O50: 15534.59731 | P50: 14455.8955 | Q50: 21256.90345 | S50: 800 | T50: 80.8509581 | U50: 80.78407507 | V50: 81.79576088 | W50: 82.24888811
A51: 850 | B51: 77.6039 | C51: 73.8512 | D51: 79.8452 | E51: 74.2589 | G51: 850 | H51: 81.3929 | I51: 81.1159 | J51: 82.7728 | K51: 83.0125 | M51: 850 | N51: 7589.182559 | O51: 4926.744041 | P51: 9823.358641 | Q51: 5163.509733 | S51: 850 | T51: 81.39293371 | U51: 81.11596863 | V51: 82.77275328 | W51: 83.01247277
A52: 900 | B52: 81.3267 | C52: 79.3472 | D52: 82.3498 | E52: 79.9854 | G52: 900 | H52: 82.3969 | I52: 81.8688 | J52: 84.3007 | K52: 84.3793 | M52: 900 | N52: 11650.24343 | O52: 9275.984195 | P52: 13106.59863 | Q52: 9983.205248 | S52: 900 | T52: 82.39685904 | U52: 81.86880275 | V52: 84.30071148 | W52: 84.379268
A53: 950 | B53: 83.7118 | C53: 82.7407 | D53: 85.6828 | E53: 85.2358 | G53: 950 | H53: 84.4366 | I53: 83.4169 | J53: 86.2093 | K53: 85.9483 | M53: 950 | N53: 15331.68896 | O53: 13709.92251 | P53: 19237.1176 | Q53: 18272.16465 | S53: 950 | T53: 84.43656029 | U53: 83.41691382 | V53: 86.20929169 | W53: 85.94826913
A54: 1000 | B54: 85.6416 | C54: 85.3694 | D54: 88.1012 | E54: 88.9759 | G54: 1000 | H54: 85.4432 | I54: 84.6017 | J54: 87.2485 | K54: 87.4835 | M54: 1000 | N54: 19146.08576 | O54: 18555.38629 | P54: 25413.23778 | Q54: 28105.73842 | S54: 1000 | T54: 85.44313377 | U54: 84.6017174 | V54: 87.24852995 | W54: 87.48344949
A55: 1060 | B55: 89.4294 | C55: 88.8281 | D55: 90.7855 | E55: 91.5144 | G55: 1060 | H55: 85.8872 | I55: 85.1475 | J55: 87.5671 | K55: 88.0014 | M55: 1060 | N55: 29612.15405 | O55: 27631.53425 | P55: 34615.84998 | Q55: 37646.10073 | S55: 1060 | T55: 85.88716434 | U55: 85.14753178 | V55: 87.56705675 | W55: 88.00137286
A56: 1120 | B56: 85.0219 | C56: 83.949 | D56: 87.1634 | E56: 87.7249 | G56: 1120 | H56: 85.9706 | I56: 85.3715 | J56: 87.1991 | K56: 87.7542 | M56: 1120 | N56: 17827.68698 | O56: 15756.14613 | P56: 22812.34863 | Q56: 24335.76484 | S56: 1120 | T56: 85.97057428 | U56: 85.37149937 | V56: 87.19912601 | W56: 87.7541949
A57: 1180 | B57: 84.3801 | C57: 83.3959 | D57: 84.8155 | E57: 84.738 | G57: 1180 | H57: 86.2132 | I57: 85.754 | J57: 86.2837 | K57: 86.9725 | M57: 1180 | N57: 16557.89026 | O57: 14784.10369 | P57: 17409.04709 | Q57: 17254.40549 | S57: 1180 | T57: 86.2131899 | U57: 85.75398753 | V57: 86.28365923 | W57: 86.97251666
A58: 1250 | B58: 84.2341 | C58: 84.1215 | D58: 83.0954 | E58: 83.3746 | G58: 1250 | H58: 86.0301 | I58: 85.8598 | J58: 84.7165 | K58: 85.469 | M58: 1250 | N58: 16281.89689 | O58: 16072.18786 | P58: 14281.37424 | Q58: 14747.89375 | S58: 1250 | T58: 86.03007472 | U58: 85.85976375 | V58: 84.71652101 | W58: 85.4689409
A59: 1320 | B59: 86.8336 | C59: 87.1332 | D59: 82.8954 | E59: 84.9094 | G59: 1320 | H59: 86.6066 | I59: 86.7599 | J59: 84.4617 | K59: 85.071 | M59: 1320 | N59: 21962.41026 | O59: 22733.17002 | P59: 13956.29048 | Q59: 17598.27095 | S59: 1320 | T59: 86.6066224 | U59: 86.75991662 | V59: 84.4617233 | W59: 85.07093906
A60: 1400 | B60: 88.7801 | C60: 89.1938 | D60: 84.9102 | E60: 85.9814 | G60: 1400 | H60: 87.2927 | I60: 87.614 | J60: 84.7491 | K60: 85.3976 | M60: 1400 | N60: 27479.2579 | O60: 28819.73612 | P60: 17599.89189 | Q60: 19909.94223 | S60: 1400 | T60: 87.29268253 | U60: 87.613961 | V60: 84.74913615 | W60: 85.39762737
A61: 1500 | B61: 87.8533 | C61: 88.4568 | D61: 86.1604 | E61: 86.078 | G61: 1500 | H61: 86.8166 | I61: 87.3268 | J61: 84.1872 | K61: 84.9135 | M61: 1500 | N61: 24698.18276 | O61: 26475.24575 | P61: 20324.50607 | Q61: 20132.60626 | S61: 1500 | T61: 86.81665435 | U61: 87.32680764 | V61: 84.18715206 | W61: 84.91347747
A62: 1600 | B62: 88.0797 | C62: 88.3109 | D62: 86.1159 | E62: 86.3153 | G62: 1600 | H62: 85.1546 | I62: 85.5668 | J62: 82.8158 | K62: 83.0886 | M62: 1600 | N62: 25350.41072 | O62: 26034.24575 | P62: 20220.64478 | Q62: 20690.21483 | S62: 1600 | T62: 85.15461048 | U62: 85.56678729 | V62: 82.81584581 | W62: 83.08860122
A63: 1700 | B63: 80.0931 | C63: 81.7026 | D63: 78.9578 | E63: 79.7369 | G63: 1700 | H63: 83.8776 | I63: 84.2539 | J63: 81.2728 | K63: 81.7275 | M63: 1700 | N63: 10107.76183 | O63: 12165.50103 | P63: 8869.313377 | Q63: 9701.636534 | S63: 1700 | T63: 83.87766441 | U63: 84.25394563 | V63: 81.27282934 | W63: 81.72751059
A64: 1800 | B64: 69.1734 | C64: 63.0133 | D64: 66.5712 | E64: 59.2436 | G64: 1800 | H64: 83.8628 | I64: 83.6309 | J64: 80.8013 | K64: 80.7169 | M64: 1800 | N64: 2875.212845 | O64: 1414.702106 | P64: 2130.88494 | Q64: 916.6003104 | S64: 1800 | T64: 83.86280413 | U64: 83.63093747 | V64: 80.80126336 | W64: 80.71689834
A65: 1900 | B65: 83.5823 | C65: 83.81 | D65: 76.0496 | E65: 79.6102 | G65: 1900 | H65: 83.2852 | I65: 81.4119 | J65: 80.521 | K65: 78.4139 | M65: 1900 | N65: 15104.80072 | O65: 15506.00787 | P65: 6345.706772 | Q65: 9561.147101 | S65: 1900 | T65: 83.28522716 | U65: 81.41185726 | V65: 80.52097394 | W65: 78.41397832
A66: 2000 | B66: 87.8062 | C66: 86.3728 | D66: 84.7435 | E66: 82.563 | G66: 2000 | H66: 84.5682 | I66: 81.3373 | J66: 80.9071 | K66: 77.7405 | M66: 2000 | N66: 24564.61716 | O66: 20827.63701 | P66: 17265.33463 | Q66: 13432.28816 | S66: 2000 | T66: 84.56825061 | U66: 81.33728009 | V66: 80.90713219 | W66: 77.7405014
A67: 2120 | B67: 86.1637 | C67: 78.9988 | D67: 85.3338 | E67: 78.1089 | G67: 2120 | H67: 86.3626 | I67: 82.8001 | J67: 82.0467 | K67: 78.4879 | M67: 2120 | N67: =10^(B67/20) -> 20332.22935 | O67: =10^(C67/20) -> 8911.278158 | P67: =10^(D67/20) -> 18479.49079 | Q67: =10^(E67/20) -> 8043.498775 | S67: 2120 | T67: 86.36263502 | U67: 82.80010487 | V67: 82.04673088 | W67: 78.48795599
A68: 2240 | B68: 86.7394 | C68: 81.3359 | D68: 81.0484 | E68: 76.3828 | G68: 2240 | H68: 87.7723 | I68: 83.5808 | J68: 82.4131 | K68: 79.4601 | M68: 2240 | N68: 21725.51099 | O68: 11662.58978 | P68: 11282.8808 | Q68: 6593.864221 | S68: 2240 | T68: 87.77226566 | U68: 83.58078867 | V68: 82.41309438 | W68: 79.46009017
A69: 2360 | B69: 86.9619 | C69: 81.6647 | D69: 79.9236 | E69: 72.8308 | G69: 2360 | H69: 86.5664 | I69: 82.4139 | J69: 82.4626 | K69: 79.5536 | M69: 2360 | N69: 22289.22663 | O69: 12112.53375 | P69: 9912.426955 | Q69: 4380.664567 | S69: 2360 | T69: =20*LOG(SUM(N67:N71)/5) -> 86.56643245 | U69: =20*LOG(SUM(O67:O71)/5) -> 82.41388894 | V69: =20*LOG(SUM(P67:P71)/5) -> 82.46260644 | W69: =20*LOG(SUM(Q67:Q71)/5) -> 79.55360148
A70: 2500 | B70: 90.4834 | C70: 86.8472 | D70: 79.1542 | E70: 83.2491 | G70: 2500 | H70: 85.5057 | I70: 83.2364 | J70: 82.9909 | K70: 81.8954 | M70: 2500 | N70: 33432.58828 | O70: 21996.82501 | P70: 9072.145357 | Q70: 14536.33758 | S70: 2500 | T70: 85.50570416 | U70: 83.23637038 | V70: 82.99093485 | W70: 81.89543357
A71: 2650 | B71: 78.7966 | C71: 81.0885 | D71: 84.9313 | E71: 82.8858 | G71: 2650 | H71: 83.4884 | I71: 83.218 | J71: 83.1107 | K71: 81.8824 | M71: 2650 | N71: 8706.227272 | O71: 11335.09071 | P71: 17642.698 | Q71: 13940.87394 | S71: 2650 | T71: 83.48840992 | U71: 83.21800854 | V71: 83.11072785 | W71: 81.88243316
A72: 2800 | B72: 78.1598 | C72: 83.7888 | D72: 87.0987 | E72: 87.1363 | G72: 2800 | H72: 81.1759 | I72: 82.5489 | J72: 82.1426 | K72: 82.8762 | M72: 2800 | N72: 8090.772693 | O72: 15468.20788 | P72: 22643.05388 | Q72: 22741.28495 | S72: 2800 | T72: 81.17583903 | U72: 82.54890701 | V72: 82.14260551 | W72: 82.87620054
A73: 3000 | B73: 66.8216 | C73: 81.221 | D73: 81.7717 | E73: 76.2594 | G73: 3000 | H73: 74.3491 | I73: 80.4168 | J73: 82.3156 | K73: 82.343 | M73: 3000 | N73: 2193.208902 | O73: 11509.32887 | P73: 12262.66884 | Q73: 6500.847825 | S73: 3000 | T73: 74.34905071 | U73: 80.41682121 | V73: 82.31555925 | W73: 82.34297287
A74: 3150 | B74: 73.6707 | C74: 76.5772 | D74: 67.4865 | E74: 81.5168 | G74: 3150 | H74: 75.1627 | I74: 81.4647 | J74: 81.5467 | K74: 81.6318 | M74: 3150 | N74: 4825.418668 | O74: 6743.106206 | P74: 2367.690873 | Q74: 11908.03219 | S74: 3150 | T74: 75.16271612 | U74: 81.46474172 | V74: 81.54671218 | W74: 81.63182676
A75: 3350 | B75: 67.1254 | C75: 77.3872 | D75: 80.3064 | E75: 80.3327 | G75: 3350 | H75: 80.641 | I75: 81.7955 | J75: 81.2436 | K75: 81.9623 | M75: 3350 | N75: 2271.276461 | O75: 7402.186107 | P75: 10359.05169 | Q75: 10390.46539 | S75: 3350 | T75: 80.64103696 | U75: 81.79552791 | V75: 81.24365606 | W75: 81.96229495
A76: 3550 | B76: 81.037 | C76: 85.1351 | D76: 81.6651 | E76: 78.883 | G76: 3550 | H76: 83.4132 | I76: 82.232 | J76: 80.3734 | K76: 81.9635 | M76: 3550 | N76: 11268.08203 | O76: 18061.54926 | P76: 12113.09156 | Q76: 8793.261729 | S76: 3550 | T76: 83.41321987 | U76: 82.23204464 | V76: 80.37336374 | W76: 81.96351965
A77: 3750 | B77: 90.4415 | C77: 84.9916 | D77: 86.275 | E77: 87.9869 | G77: 3750 | H77: 84.6781 | I77: 83.0737 | J77: 83.1142 | K77: 84.0432 | M77: 3750 | N77: 33271.70065 | O77: 17765.60493 | P77: 20594.44061 | Q77: 25081.00877 | S77: 3750 | T77: 84.67808584 | U77: 83.07373723 | V77: 83.11418153 | W77: 84.04322299
A78: 4000 | B78: 87.0172 | C78: 83.3334 | D78: 76.6013 | E78: 76.2712 | G78: 4000 | H78: 87.2455 | I78: 85.3866 | J78: 83.4134 | K78: 85.4345 | M78: 4000 | N78: 22431.58698 | O78: 14678.10533 | P78: 6761.84171 | Q78: 6509.685393 | S78: 4000 | T78: 87.24544699 | U78: 85.38656648 | V78: 83.41336727 | W78: 85.43452261
A79: 4250 | B79: 84.3161 | C79: 82.4911 | D79: 86.7424 | E79: 89.2076 | G79: 4250 | H79: 87.4637 | I79: 85.2183 | J79: 85.9568 | K79: 87.17 | M79: 4250 | N79: 16436.33559 | O79: 13321.55739 | P79: 21733.01601 | Q79: 28865.56084 | S79: 4250 | T79: 87.46370652 | U79: 85.21827711 | V79: 85.95681655 | W79: 87.17002828
A80: 4500 | B80: 90.0312 | C80: 89.2879 | D80: 82.1895 | E80: 87.6855 | G80: 4500 | H80: 85.8499 | I80: 84.0676 | J80: 85.7635 | K80: 86.1114 | M80: 4500 | N80: 31736.5709 | O80: 29133.65681 | P80: 12866.93183 | Q80: 24225.62554 | S80: 4500 | T80: 85.84984614 | U80: 84.06762042 | V80: 85.76347437 | W80: 86.11139449
A81: 4750 | B81: 83.0446 | C81: 84.2319 | D81: 91.437 | E81: 89.3867 | G81: 4750 | H81: 84.8046 | I81: 82.635 | J81: 85.8349 | K81: 87.6285 | M81: 4750 | N81: 14198.09246 | O81: 16277.77346 | P81: 37312.1264 | Q81: 29466.93737 | S81: 4750 | T81: 84.80461551 | U81: 82.63502071 | V81: 85.83491421 | W81: 87.62849544
A82: 5000 | B82: 82.4448 | C82: 76.1951 | D82: 85.3007 | E82: 81.5713 | G82: 5000 | H82: 84.9792 | I82: 82.4801 | J82: 87.4391 | K82: 87.1826 | M82: 5000 | N82: 13250.73596 | O82: 6452.900967 | P82: 18409.20356 | Q82: 11982.98457 | S82: 5000 | T82: 84.9791379 | U82: 82.48009824 | V82: 87.43908609 | W82: 87.18261636
A83: 5300 | B83: 81.0727 | C83: 68.0787 | D83: 77.5746 | E83: 88.2306 | G83: 5300 | H83: 84.2313 | I83: 79.6853 | J83: 88.5147 | K83: 86.0772 | M83: 5300 | N83: 11314.49044 | O83: 2534.749231 | P83: 7563.625198 | Q83: 25794.67142 | S83: 5300 | T83: 84.23132712 | U83: 79.68525268 | V83: 88.51471408 | W83: 86.07715758
A84: 5600 | B84: 85.2018 | C84: 81.6732 | D84: 92.3794 | E84: 87.1755 | G84: 5600 | H84: 85.3636 | I84: 79.3926 | J84: 88.8729 | K84: 85.4228 | M84: 5600 | N84: 18200.77999 | O84: 12124.39286 | P84: 41588.18814 | Q84: 22844.14983 | S84: 5600 | T84: 85.36363361 | U84: 79.39259733 | V84: 88.87287425 | W84: 85.42278357
A85: 6000 | B85: 87.7547 | C85: 80.6932 | D85: 89.0629 | E85: 80.477 | G85: 6000 | H85: 86.1973 | I85: 81.5993 | J85: 89.5414 | K85: 85.1306 | M85: 6000 | N85: 24419.40063 | O85: 10830.78663 | P85: 28388.66696 | Q85: 10564.5256 | S85: 6000 | T85: 86.19724813 | U85: 81.59927704 | V85: 89.5414055 | W85: 85.13062182
A86: 6300 | B86: 88.141 | C86: 83.3346 | D86: 92.6536 | E86: 86.9124 | G86: 6300 | H86: 85.6191 | I86: 83.0182 | J86: 89.732 | K86: 84.053 | M86: 6300 | N86: 25529.9521 | O86: 14680.13333 | P86: 42922.00492 | Q86: 22162.56386 | S86: 6300 | T86: 85.61912914 | U86: 83.01820012 | V86: 89.73197832 | W86: 84.05300318
A87: 6700 | B87: 87.0783 | C87: 85.9937 | D87: 89.4023 | E87: 78.9832 | G87: 6700 | H87: 87.325 | I87: 85.8182 | J87: 88.8985 | K87: 84.6796 | M87: 6700 | N87: 22589.93597 | O87: 19938.15647 | P87: 29519.90802 | Q87: 8895.28772 | S87: 6700 | T87: 87.32501009 | U87: 85.81821904 | V87: 88.89845676 | W87: 84.67964319
A88: 7100 | B88: 73.5211 | C88: 82.4125 | D88: 80.7411 | E88: 83.6729 | G88: 7100 | H88: 87.9477 | I88: 86.6807 | J88: 87.5885 | K88: 85.1403 | M88: 7100 | N88: 4743.020481 | O88: 13201.55228 | P88: 10890.68007 | Q88: 15263.17909 | S88: 7100 | T88: 87.94767816 | U88: 86.68066342 | V88: 87.58848997 | W88: 85.1403096
A89: 7500 | B89: 91.8038 | C89: 91.8316 | D89: 88.8056 | E89: 89.1905 | G89: 7500 | H89: 87.177 | I89: 87.0619 | J89: 86.4247 | K89: 83.0666 | M89: 7500 | N89: 38921.5386 | O89: 39046.31018 | P89: 27560.04993 | Q89: 28808.78882 | S89: 7500 | T89: 87.17697127 | U89: 87.06190509 | V89: 86.424714 | W89: 83.06657718
A90: 8000 | B90: 90.3849 | C90: 86.4565 | D90: 78.9782 | E90: 83.6552 | G90: 8000 | H90: 86.4911 | I90: 86.461 | J90: 86.4825 | K90: 83.8974 | M90: 8000 | N90: 33055.59661 | O90: 21029.30888 | P90: 8890.168654 | Q90: 15232.10764 | S90: 8000 | T90: 86.49106975 | U90: 86.46104856 | V90: 86.48251155 | W90: 83.89736077
A91: 8500 | B91: 83.4812 | C91: 85.8102 | D91: 88.9126 | E91: 69.4579 | G91: 8500 | H91: 88.2188 | I91: 87.0388 | J91: 88.5309 | K91: 86.3801 | M91: 8500 | N91: 14930.00661 | O91: 19521.35683 | P91: 27901.65729 | Q91: 2970.947655 | S91: 8500 | T91: 88.21883625 | U91: 87.03878243 | V91: 88.53092036 | W91: 86.38009691
A92: 9000 | B92: 82.8701 | C92: 81.8706 | D92: 89.6057 | E92: 84.1034 | G92: 9000 | H92: 87.6758 | I92: 85.8653 | J92: 88.8463 | K92: 86.152 | M92: 9000 | N92: 13915.69816 | O92: 12403.093 | P92: 30219.34174 | Q92: 16038.73087 | S92: 9000 | T92: 87.6757528 | U92: 85.86528005 | V92: 88.84629535 | W92: 86.15195719
A93: 9500 | B93: 88.9357 | C93: 86.2083 | D93: 91.8078 | E93: 92.2927 | G93: 9500 | H93: 85.3612 | I93: 87.1477 | J93: 88.9607 | K93: 87.122 | M93: 9500 | N93: 27975.96011 | O93: 20436.89906 | P93: 38939.46676 | Q93: 41175.13199 | S93: 9500 | T93: 85.36119893 | U93: 87.14772448 | V93: 88.960672 | W93: 87.12204443
A94: 10000 | B94: 89.8594 | C94: 87.902 | D94: 90.2368 | E94: 88.3351 | G94: 10000 | H94: 84.3513 | I94: 87.9167 | J94: 89.8855 | K94: 87.7584 | M94: 10000 | N94: 31115.01395 | O94: 24837.04934 | P94: 32496.75529 | Q94: 26106.88163 | S94: 10000 | T94: 84.35129458 | U94: 87.91669237 | V94: 89.88551459 | W94: 87.75837437
A95: 10600 | B95: 73.5388 | C95: 91.2833 | D95: 80.6082 | E95: 88.7004 | G95: 10600 | H95: 84.855 | I95: 89.2329 | J95: 91.4254 | K95: 88.0051 | M95: 10600 | N95: 4752.695605 | O95: 36657.68205 | P95: 10725.31361 | Q95: 27228.26696 | S95: 10600 | T95: 84.85495812 | U95: 89.23291632 | V95: 91.42542973 | W95: 88.00512226
A96: 11200 | B96: 73.5448 | C96: 89.56 | D96: 92.8022 | E96: 81.2889 | G96: 11200 | H96: 82.8441 | I96: 88.0913 | J96: 91.482 | K96: 86.6966 | M96: 11200 | N96: 4755.979785 | O96: 30060.76303 | P96: 43662.64089 | Q96: 11599.65306 | S96: 11200 | T96: 82.8440679 | U96: 88.09124351 | V96: 91.48197973 | W96: 86.69660851
A97: 11800 | B97: 85.5025 | C97: 90.306 | D97: 95.6334 | E97: 85.8267 | G97: 11800 | H97: 81.6788 | I97: 86.4791 | J97: 90.5193 | K97: 85.676 | M97: 11800 | N97: 18841.91325 | O97: 32756.68919 | P97: 60488.10793 | Q97: 19558.47548 | S97: 11800 | T97: 81.67875929 | U97: 86.47905564 | V97: 90.51931877 | W97: 85.67602382
A98: 12500 | B98: 79.9168 | C98: 68.3276 | D98: 92.0751 | E98: 87.4584 | G98: 12500 | H98: 83.1982 | I98: 85.5381 | J98: 91.5218 | K98: 84.6375 | M98: 12500 | N98: 9904.669761 | O98: 2608.434886 | P98: 40156.42112 | Q98: 23600.43457 | S98: 12500 | T98: 83.19818019 | U98: 85.53804318 | V98: 91.52179196 | W98: 84.63747604
A99: 13200 | B99: 87.0071 | C99: 70.4655 | D99: 82.1599 | E99: 82.999 | G99: 13200 | H99: 84.9666 | I99: 85.7116 | J99: 91.618 | K99: 85.6343 | M99: 13200 | N99: 22405.51857 | O99: 3336.376089 | P99: 12823.15819 | Q99: 14123.7493 | S99: 13200 | T99: 84.96663429 | U99: 85.71162126 | V99: 91.61797701 | W99: 85.63429324
A100: 14000 | B100: 84.2697 | C100: 88.2437 | D100: 89.8999 | E100: 84.2953 | G100: 14000 | H100: 85.0072 | I100: 84.6212 | J100: 90.0327 | K100: 87.2391 | M100: 14000 | N100: 16348.76684 | O100: 25833.60412 | P100: 31260.43377 | Q100: 16397.02278 | S100: 14000 | T100: 85.0072072 | U100: 84.62121617 | V100: 90.0326798 | W100: 87.23905905
A101: 15000 | B101: 86.4742 | C101: 90.0949 | D101: 93.2098 | E101: 86.8367 | G101: 15000 | H101: 85.5529 | I101: 85.5891 | J101: 89.8666 | K101: 89.8219 | M101: 15000 | N101: 21072.20584 | O101: 31970.174 | P101: 45760.4198 | Q101: 21970.25006 | S101: 15000 | T101: 85.55286952 | U101: 85.58907148 | V101: 89.86661911 | W101: 89.82184361
A102: 16000 | B102: 85.6916 | C102: 86.5966 | D102: 89.1605 | E102: 91.8142 | G102: 16000 | H102: 85.8112 | I102: 88.0349 | J102: 91.6485 | K102: 89.2424 | M102: 16000 | N102: 19256.61732 | O102: 21371.25371 | P102: 28709.45842 | Q102: 38968.169 | S102: 16000 | T102: 85.81123821 | U102: 88.03492585 | V102: 91.64848554 | W102: 89.24236165
A103: 17000 | B103: 83.9038 | C103: 82.0362 | D103: 91.3994 | E103: 96.0479 | G103: 17000 | H103: 86.2358 | I103: 87.2478 | J103: 91.8086 | K103: 88.4372 | M103: 17000 | N103: 15674.3666 | O103: 12641.83158 | P103: 37150.95652 | Q103: 63444.64914 | S103: 17000 | T103: 86.23579629 | U103: 87.2477857 | V103: 91.80854569 | W103: 88.43717742
A104: 18000 | B104: 88.0509 | C104: 90.7017 | D104: 93.6749 | E104: 72.3116 | G104: 18000 | H104: 86.8371 | I104: 84.6895 | J104: 92.106 | K104: 90.9195 | M104: 18000 | N104: 25266.49499 | O104: 34283.48795 | P104: 48277.52529 | Q104: 4126.482427 | S104: 18000 | T104: 86.83705075 | U104: 84.68946456 | V104: 92.10603457 | W104: 90.91946511
A105: 19000 | B105: 86.5426 | C105: 83.4687 | D105: 90.8355 | E105: 71.0484 | G105: 19000 | H105: 85.5326 | I105: 85.2075 | J105: 91.4326 | K105: 92.0302 | M105: 19000 | N105: 21238.80121 | O105: 14908.53606 | P105: 34815.68946 | Q105: 3567.96019 | S105: 19000 | T105: 85.53256285 | U105: 85.20745407 | V105: 91.43259187 | W105: 92.0301638
A106: 20000 | B106: 89.0723 | C106: 68.2532 | D106: 94.4106 | E106: 96.3463 | G106: 20000 | H106: 84.7862 | I106: 85.5645 | J106: 90.6286 | K106: 93.7039 | M106: 20000 | N106: 28419.40624 | O106: 2586.187451 | P106: 52544.83105 | Q106: 65662.13505 | S106: 20000 | T106: 84.7862333 | U106: 85.5645104 | V106: 90.62860502 | W106: 93.70373093
A107: 21200 | B107: 71.9036 | C107: 88.5117 | D107: 82.7198 | E107: 95.9792 | G107: 21200 | H107: 83.7343 | I107: 83.6084 | J107: 89.6648 | K107: 95.4928 | M107: 21200 | N107: 3937.132221 | O107: 26643.11504 | P107: 13676.97333 | Q107: 62944.82059 | S107: 21200 | T107: =20*LOG(SUM(N106:N108)/3) -> 82.55227495 | U107: =20*LOG(SUM(O106:O108)/3) -> 83.65447916 | V107: 89.23674459 | W107: 97.86027439
A108: 22400 | B108: 77.9422 | C108: 84.3303 | D108: 86.3051 | E108: 100.497 | G108: 22400 | H108: 77.9422 | I108: 84.3303 | J108: 86.3051 | K108: 100.497 | M108: 22400 | N108: 7890.599489 | O108: 16463.22827 | P108: 20665.93219 | Q108: 105888.7935 | S108: 22400 | T108: =20*LOG(N108) -> 77.9422 | U108: =20*LOG(O108) -> 84.3303 | V108: 86.3051 | W108: 100.497
